[Event "44th Chess Olympiad Women 2022"]
[Site "Chennai"]
[Date "2022.08.03"]
[Round "6.4"]
[White "Eric, Jovana"]
[Black "Kiolbasa, Oliwia"]
[Result "0-1"]
[WhiteElo "2271"]
[BlackElo "2376"]
[Annotator "TA"]
[PlyCount "78"]
[EventDate "2022.??.??"]
[TimeControl "60"]

{[%evp 12,78,7,4,9,13,19,0,3,-4,-9,-9,-10,-22,-16,-16,-12,-20,-14,-27,-3,-34,
-13,-15,0,-31,0,-44,-29,-80,-86,-52,-56,-59,-73,-61,0,-60,-56,-51,0,0,0,0,0,0,
0,-8,0,-152,-150,-406,-424,-416,-397,-499,-162,-456,-78,-168,0,-98,-99,-99,
-106,-106,-106,-29984,-10970]} 1. e4 {[%emt 0:00:03]} e5 {[%emt 0:00:08]} 2.
Nf3 {[%emt 0:00:06]} Nc6 {[%emt 0:00:08]} 3. Bb5 {[%emt 0:00:10][%cal Yf1b5,
Yb5a4,Ya4b3,Yb3d5]} a6 {[%emt 0:00:12]} 4. Ba4 {[%emt 0:00:05]} Nf6 {[%emt 0:
00:09]} 5. d3 {[%emt 0:00:25]} b5 {[%emt 0:00:45]} 6. Bb3 {[%emt 0:00:00]} Bc5
{[%emt 0:00:35]} 7. Nc3 {[%emt 0:00:50] 7.c3 is setting a new trend.} h6 {
[%emt 0:02:22] C77: Ruy Lopez: 3...a6 4 Ba4 Nf6, unusual lines.} 8. Nd5 {
[%emt 0:04:03]} d6 {[%emt 0:01:16]} 9. a3 {[%emt 0:03:00]} Rb8 {[%emt 0:03:02]
The position is equal.} 10. h3 {[%emt 0:01:31]} Nxd5 {[%emt 0:05:01]} 11. Bxd5
{[%emt 0:00:08]} Ne7 {[%emt 0:00:24]} 12. Ba2 {[%emt 0:00:37]} Ng6 {[%emt 0:00:
00]} 13. O-O {[%emt 0:08:22]} O-O {[%emt 0:01:06]} 14. c3 {[%emt 0:04:14]} Bb6
{[%emt 0:01:12]} 15. Be3 {[%emt 0:04:24] [#]} c5 $146 {[%emt 0:03:44]} ({
Predecessor:} 15... Be6 16. d4 Bxa2 17. Rxa2 c5 18. Ra1 c4 19. Qc2 Qf6 20. Rfd1
Rfe8 21. a4 Nf4 22. axb5 axb5 23. Bxf4 exf4 {½-½ (35) Alekseev,E (2602)
-Riazantsev,A (2634) Sochi 2021}) 16. b4 {[%emt 0:04:25]} Bb7 {[%emt 0:08:05]}
17. Qd2 {[%emt 0:33:59]} Kh7 {[%emt 0:09:42]} 18. Rfc1 {[%emt 0:01:59]} c4 {
[%emt 0:06:20]} 19. dxc4 {[%emt 0:04:29]} Bxe4 {[%emt 0:03:28]} 20. Qe2 {
[%emt 0:00:48]} (20. c5 $11 dxc5 21. bxc5) 20... Bxe3 $17 {[%emt 0:05:10]} 21.
fxe3 {[%emt 0:02:10]} f5 {[%emt 0:08:55]} 22. cxb5 {[%emt 0:00:40]} axb5 {
[%emt 0:03:42]} 23. c4 {[%emt 0:02:10]} f4 {[%emt 0:04:07]} (23... bxc4 $15 24.
Rxc4 Qf6) 24. exf4 {[%emt 0:04:43]} (24. Nd2 $11 Ba8 25. Bb1) 24... Rxf4 $15 {
[%emt 0:01:09]} 25. Nd2 {[%emt 0:00:13]} Bb7 {[%emt 0:09:22]} (25... Bf5 $15)
26. Bb1 $1 $11 {[%emt 0:02:32]} bxc4 {[%emt 0:04:47]} 27. Bxg6+ {[%emt 0:01:56]
} Kxg6 {[%emt 0:00:07]} 28. Nxc4 {[%emt 0:00:07]} Kh7 {[%emt 0:03:38]} 29. Rd1
{[%emt 0:05:42]} Rf6 {[%emt 0:00:25] ...Rg6 is the strong threat.} 30. Kh2 $2 {
[%emt 0:03:34]} (30. Qc2+ $11 e4 31. Ne3) 30... Rg6 $17 {[%emt 0:05:41]} 31.
Ne3 {[%emt 0:01:04]} (31. g3 $17) 31... Qg5 $1 $19 {[%emt 0:00:28][%cal Yg5e3]
Strongly threatening ...Qxe3!} 32. Nd5 {[%emt 0:02:50]} Rf8 $1 {[%emt 0:01:33]}
({And not} 32... Bxd5 33. Rxd5 Rc8 34. Kh1 $11) 33. Kh1 {[%emt 0:01:16]} Ba6 $2
{[%emt 0:01:33]} 34. Qc2 {[%emt 0:00:55] Against Rf2} (34. Qg4) 34... Kh8 $2 {
[%emt 0:00:53]} (34... Bc8 $19 {has better winning chances.} 35. Rd2 Bf5) 35.
a4 {[%emt 0:01:35]} (35. Ne7 $17 {keeps fighting.} Re6 36. Nd5) 35... Qg3 $2 {
[%emt 0:00:31]} (35... Bb7 $19 {[%cal Ye5e4] Hoping for ...e4!} 36. a5 Qg3) 36.
Ra2 {[%emt 0:00:56] [#]} (36. Ne7 $11 {keeps the balance.} Re6 37. Nf5) 36...
Rg5 $1 $40 {[%emt 0:01:15] Threatens to win with ...Rgf5. Black attacks with
force. Black is more active.} 37. b5 {[%emt 0:00:58]} Bb7 {[%emt 0:00:31]} 38.
Qe2 {[%emt 0:00:34]} Rgf5 {[%emt 0:01:10]} 39. Qc4 $2 {[%emt 0:01:25]} ({
Don't go for} 39. Qd3 $2 {[#]} Rf1+ $3 40. Rxf1 Qxd3 $19) (39. Kg1 $17) 39...
Bxd5 {[%emt 0:00:28] Weighted Error Value: White=0.58/Black=0.40} 0-1

[Event "44th Chess Olympiad Women 2022"]
[Site "Chennai"]
[Date "2022.08.03"]
[Round "6.4"]
[White "Injac, Teodora"]
[Black "Kashlinskaya, Alina"]
[Result "0-1"]
[WhiteElo "2372"]
[BlackElo "2505"]
[Annotator "TA"]
[PlyCount "94"]
[EventDate "2022.??.??"]
[TimeControl "60"]

{[%evp 14,94,16,0,0,-8,0,-26,16,0,0,8,0,0,0,0,0,0,24,0,0,0,4,-11,22,11,64,0,0,
0,3,-24,-18,-60,-64,-52,-55,-66,-60,-114,-110,-116,-114,-113,-99,-116,-122,
-305,-302,-338,-361,-378,-358,-512,-491,-492,-488,-444,0,-428,-379,-361,-239,
-455,-455,-461,-433,-477,-481,-483,-450,-441,-441,-987,-987,-987,-967,-882,
-818,-1034,-970,-887,-851]} 1. Nf3 {[%emt 0:00:06]} d5 {[%emt 0:00:12]} 2. g3 {
[%emt 0:00:56]} Nf6 {[%emt 0:00:14]} 3. Bg2 {[%emt 0:00:08]} c5 {[%emt 0:00:17]
} 4. O-O {[%emt 0:01:00]} e6 {[%emt 0:00:13]} 5. d3 {[%emt 0:11:15]} Nc6 {
[%emt 0:00:22]} 6. Nbd2 {[%emt 0:00:11]} Be7 {[%emt 0:00:17]} 7. e4 {[%emt 0:
00:00]} b5 {[%emt 0:00:23]} 8. Re1 {[%emt 0:02:35]} Bb7 {[%emt 0:00:31] C00:
French: Unusual White 2nd moves.} 9. h4 {[%emt 0:23:36]} h6 {[%emt 0:08:24]}
10. Qe2 {[%emt 0:10:04] [#]} Qb6 $146 {[%emt 0:29:57] Black has an edge.} ({
Predecessor:} 10... Qc7 11. Nf1 b4 12. Bf4 Qb6 13. e5 Nd7 14. N1h2 a5 15. c4
dxc4 16. dxc4 O-O-O {1-0 (60) Voloshin,L (2389)-Guelsen,T (2093) Ceske
Budejovice 2017}) 11. exd5 {[%emt 0:20:43]} (11. a4 {seems wilder.} Nb4 12.
axb5 Nxc2 13. Nc4) 11... exd5 {[%emt 0:04:30]} 12. a4 {[%emt 0:00:16]} O-O {
[%emt 0:01:37]} 13. axb5 {[%emt 0:01:06]} Qxb5 {[%emt 0:00:12]} 14. d4 {
[%emt 0:10:17]} Qb6 {[%emt 0:03:10]} 15. Nb3 {[%emt 0:02:50]} c4 {[%emt 0:00:
00]} 16. Nbd2 {[%emt 0:00:32]} (16. Na5 $5 Nxa5 17. Qxe7 $14) 16... Rae8 {
[%emt 0:00:37]} 17. c3 {[%emt 0:01:07]} Bc8 $36 {[%emt 0:00:16] Black has some
pressure.} 18. Nf1 {[%emt 0:11:15]} Bf5 {[%emt 0:10:17]} (18... Bd6 $5 {
[%cal Re8e2]} 19. Be3 Bg4 $15) 19. Ne3 {[%emt 0:00:00]} Be4 {[%emt 0:00:00]} ({
Black should try} 19... Bd8 $11) 20. Bh3 {[%emt 0:00:00]} (20. Ne5 $14) 20...
Bd3 {[%emt 0:02:43]} 21. Qd1 {[%emt 0:00:00]} Bd8 {[%emt 0:04:05]} 22. Nh2 {
[%emt 0:00:00]} Na5 {[%emt 0:03:10]} 23. Nhg4 {[%emt 0:00:00]} Nxg4 {[%emt 0:
00:14]} 24. Bxg4 {[%emt 0:00:00]} Nb3 $1 {[%emt 0:02:01]} 25. Ra3 {[%emt 0:00:
00]} (25. Nxd5 $2 Rxe1+ 26. Qxe1 Qg6 $19) 25... Be4 {[%emt 0:00:33] Black is
more active.} 26. Bd7 {[%emt 0:00:47] Black converts the advantage
convincingly.} (26. Ng2 $15) 26... Re7 $17 {[%emt 0:03:01]} 27. Bf5 {[%emt 0:
00:00]} Bxf5 {[%emt 0:04:26]} 28. Nxf5 {[%emt 0:00:05]} Rxe1+ {[%emt 0:00:03]}
29. Qxe1 {[%emt 0:00:04] [#]} Qg6 $1 {[%emt 0:00:48]} 30. Ne3 {[%emt 0:03:52]}
(30. Qe5 $17 Nxc1 31. Ra6) 30... Qb1 $19 {[%emt 0:00:08]} 31. Rxb3 {[%emt 0:00:
00]} cxb3 {[%emt 0:00:03]} 32. Nxd5 {[%emt 0:00:11]} a5 {[%emt 0:00:25][%cal
Ya7a5,Ya5a4]} 33. c4 {[%emt 0:01:07]} (33. Qe3 $142 a4 34. Qd2) 33... a4 {
[%emt 0:00:13][%cal Ya4a3]} 34. Nc3 {[%emt 0:00:33]} Qa1 {[%emt 0:01:47]} 35.
Nb5 {[%emt 0:00:59] Prevents a3.} Qb1 $2 {[%emt 0:03:38]} ({Better is} 35...
Bf6 $19 36. Qe3 Rd8) 36. Kg2 $2 {[%emt 0:00:34]} (36. Nc3 $1 $11 Qc2 37. Nxa4)
36... Qd3 {[%emt 0:00:38]} 37. Qc3 {[%emt 0:00:31]} Qxc3 {[%emt 0:03:33]} 38.
Nxc3 {[%emt 0:00:21] Endgame KRB-KBN} (38. bxc3 {was the only defense.} g5 39.
hxg5) 38... Bf6 {[%emt 0:00:03] Black is clearly winning.} 39. Nb5 {[%emt 0:00:
44]} Rc8 {[%emt 0:00:58]} 40. c5 {[%emt 0:00:17] [#]} Bxd4 {[%emt 0:03:34]} 41.
Nxd4 {[%emt 0:30:11] Hoping for c6.} Rxc5 {[%emt 0:30:03]} 42. Be3 {[%emt 0:00:
00][%cal Yd4b3]} Rd5 {[%emt 0:00:00][%cal Ya4a3] Threatens to win with ...a3!}
({Wrong is} 42... a3 $2 43. Nxb3 axb2 44. Nd2 $19) 43. Ne2 {[%emt 0:00:00]} (
43. Nxb3 $142 axb3 44. g4) 43... a3 {[%emt 0:00:00]} 44. bxa3 {[%emt 0:00:00]}
Rd3 {[%emt 0:00:00] White must now prevent ...b2.} 45. Bc1 {[%emt 0:00:00]} Rd1
{[%emt 0:00:00]} 46. Be3 {[%emt 0:01:17]} b2 {[%emt 0:00:00]} 47. Nc3 {[%emt 0:
00:07]} Rc1 {[%emt 0:00:00] Weighted Error Value: White=0.67/Black=0.18 (very
precise)} 0-1

[Event "44th Chess Olympiad Women 2022"]
[Site "Chennai"]
[Date "2022.08.03"]
[Round "6.4"]
[White "Malicka, Maria"]
[Black "Velikic, Adela"]
[Result "1-0"]
[WhiteElo "2393"]
[BlackElo "2273"]
[Annotator "TA"]
[PlyCount "149"]
[EventDate "2022.??.??"]
[TimeControl "60"]

{[%evp 13,149,2,46,20,42,31,55,36,52,58,51,48,42,28,89,94,88,97,87,93,97,69,
138,143,134,134,154,150,155,154,156,141,197,136,146,143,144,145,152,112,121,97,
122,91,133,118,151,146,160,149,171,163,169,145,152,152,152,160,152,152,197,206,
281,278,268,265,267,190,187,192,188,74,80,70,132,150,129,134,156,152,129,0,130,
151,135,139,167,157,168,152,165,160,134,89,83,49,318,314,307,306,420,411,526,
530,489,371,785,779,743,742,29969,29970,29970,29971,29977,29978,29977,29976,
29980,29980,29980,29981,29981,29982,29982,29983,29984,29980,29983,29982,29982,
29983,29983,29984,29985,29986,29987,29988]} 1. e4 {[%emt 0:00:01]} c5 {[%emt 0:
00:00]} 2. Nf3 {[%emt 0:00:04]} d6 {[%emt 0:00:05]} 3. d4 {[%emt 0:00:03]} cxd4
{[%emt 0:00:04]} 4. Nxd4 {[%emt 0:00:03]} Nf6 {[%emt 0:00:07]} 5. Nc3 {[%emt 0:
00:00]} Nc6 {[%emt 0:00:07]} 6. Bg5 {[%emt 0:00:05]} e6 {[%emt 0:00:07]} 7. Qd3
{[%emt 0:00:04]} a6 {[%emt 0:01:55]} 8. Nxc6 $1 {[%emt 0:00:31] is more
profitable than 8.0-0-0 at the moment. B62: Sicilian: Richter-Rauzer: 6... e6:
Unusual White 7th moves.} bxc6 {[%emt 0:00:07]} 9. O-O-O {[%emt 0:00:03][%cal
Ye4e5] e5! is the strong threat.} Be7 {[%emt 0:07:44]} 10. Qg3 {[%emt 0:00:00]
White is slightly better.} Qc7 {[%emt 0:20:27]} 11. Be2 {[%emt 0:09:07]} Rb8 {
[%emt 0:06:45] [#]} 12. Rhf1 $146 {[%emt 0:14:46]} ({Predecessor:} 12. h4 O-O
13. h5 Ne8 14. Bxe7 Qxe7 15. h6 g6 16. Kb1 a5 17. b3 Qc7 18. Qe3 {1-0 (33)
Fremmegaard,J (1585)-Zens,R (2050) ICCF email 2016}) 12... O-O {[%emt 0:19:57]}
13. f4 {[%emt 0:06:30]} d5 {[%emt 0:05:22]} (13... Kh8 $11) 14. e5 $16 {
[%emt 0:04:06]} Ne8 {[%emt 0:01:09]} 15. Bxe7 {[%emt 0:08:26]} Qxe7 {[%emt 0:
00:00]} 16. Na4 $36 {[%emt 0:00:39] Keeping Black busy.} Nc7 {[%emt 0:10:43]}
17. Qc3 {[%emt 0:04:09] Inhibits c5.} Qb4 {[%emt 0:06:17]} (17... a5 $14) 18.
Qxb4 {[%emt 0:02:19]} (18. Qxc6 Bb7 19. Qxc7 Qxa4 $11) 18... Rxb4 {[%emt 0:00:
07]} 19. Nc5 {[%emt 0:00:12]} Rd8 {[%emt 0:04:21]} 20. c3 {[%emt 0:02:44]} Rb8
{[%emt 0:00:48]} 21. Kc2 {[%emt 0:04:54]} Ra8 {[%emt 0:00:00]} 22. Rd4 $1 {
[%emt 0:04:15]} Ra7 {[%emt 0:01:32]} (22... a5 $16 {might work better.}) 23.
Ra4 {[%emt 0:01:27]} ({White should play} 23. Rb4 $18) 23... Kf8 {[%emt 0:02:
43]} 24. Rd1 {[%emt 0:05:01]} Ke7 {[%emt 0:01:00]} 25. Rdd4 {[%emt 0:01:31]} f6
{[%emt 0:04:35]} 26. Bd3 {[%emt 0:08:40]} Bd7 {[%emt 0:00:00]} 27. Kd2 {
[%emt 0:03:40]} ({But not} 27. Bxh7 Rh8 $11) 27... Rf8 {[%emt 0:00:00]} 28. Ke3
{[%emt 0:00:55]} ({Much worse is} 28. Bxh7 $6 Rh8 29. Bc2 Rxh2 $11) 28... h6 {
[%emt 0:00:40]} 29. Ra5 {[%emt 0:05:17]} Rb8 {[%emt 0:00:43]} 30. b3 {[%emt 0:
01:25]} Bc8 {[%emt 0:01:00]} 31. Rda4 {[%emt 0:04:21] White is much more
active.} Rb6 {[%emt 0:00:18]} 32. Be2 {[%emt 0:00:41]} Ra8 {[%emt 0:00:00]} 33.
a3 {[%emt 0:01:49]} Ra7 {[%emt 0:00:18]} 34. Rb4 {[%emt 0:00:10]} Rxb4 {
[%emt 0:00:35]} 35. axb4 {[%emt 0:00:01]} Ra8 {[%emt 0:00:26]} 36. Kd4 {
[%emt 0:01:24]} g5 {[%emt 0:00:46]} 37. g3 {[%emt 0:00:00]} gxf4 {[%emt 0:00:
00]} 38. gxf4 {[%emt 0:00:00]} fxe5+ {[%emt 0:00:33]} 39. Kxe5 {[%emt 0:04:48]}
Bd7 {[%emt 0:00:21]} 40. Nxa6 {[%emt 0:01:11]} Nxa6 {[%emt 0:00:36]} 41. Rxa6
$18 {[%emt 0:30:20] Endgame KRB-KRB} Rg8 {[%emt 0:06:09]} 42. Bf3 {[%emt 0:00:
00] Against Rg2} (42. Ra7 $18 {has better winning chances. And now b5 would
win.} Rg2 43. Bd3) 42... Rg1 $16 {[%emt 0:04:15]} 43. Ra2 $1 {[%emt 0:00:00]}
Rf1 {[%emt 0:09:47]} (43... Rc1 $1 $14) 44. Bh5 $1 {[%emt 0:00:00]} Re1+ {
[%emt 0:04:09]} 45. Re2 {[%emt 0:00:00]} Rb1 {[%emt 0:01:31]} 46. Rg2 {[%emt 0:
00:00]} Re1+ {[%emt 0:00:12]} 47. Re2 {[%emt 0:00:00]} Rb1 {[%emt 0:00:00]} 48.
Re3 {[%emt 0:00:00]} Rh1 {[%emt 0:02:50] [#]} 49. h3 {[%emt 0:00:00]} Rg1 {
[%emt 0:01:00]} 50. c4 {[%emt 0:00:00]} Rg2 {[%emt 0:02:39]} 51. Be2 {[%emt 0:
00:29]} Rg8 {[%emt 0:01:19]} 52. Bg4 {[%emt 0:01:33]} Rb8 {[%emt 0:00:00]
Inhibits b5.} 53. Kd4 {[%emt 0:01:13] Strongly threatening Kc5.} Kd6 {[%emt 0:
01:34]} 54. b5 {[%emt 0:01:01]} dxc4 {[%emt 0:00:40] This costs Black the game.
} (54... c5+ $14 55. Kd3 Rf8) 55. bxc6 $18 {[%emt 0:02:07]} ({Weaker is} 55.
Kxc4 cxb5+ 56. Kd3 Rf8 $11) 55... Kxc6 {[%emt 0:00:01]} 56. bxc4 {[%emt 0:00:
12]} Rf8 {[%emt 0:00:54]} 57. Re4 {[%emt 0:01:49]} Kc7 {[%emt 0:00:41] [#]} 58.
Ke5 $1 {[%emt 0:01:04]} Re8 {[%emt 0:00:34]} 59. Kf6 {[%emt 0:00:36]} Rg8 $2 {
[%emt 0:00:30]} (59... Kd6 60. Rd4+ Kc7) 60. Kf7 {[%emt 0:00:38]} Ra8 {[%emt 0:
00:30]} 61. Bxe6 {[%emt 0:00:16]} Ra3 {[%emt 0:00:00]} 62. Bxd7 {[%emt 0:00:33]
White mates.} Kxd7 {[%emt 0:00:01] KR-KR} 63. h4 {[%emt 0:00:14]} Rg3 {[%emt 0:
00:27]} 64. f5 {[%emt 0:00:15][%cal Yf4f5,Yf5f6]} h5 {[%emt 0:00:23]} 65. Re7+
{[%emt 0:01:04]} Kd8 {[%emt 0:00:26]} 66. Re8+ {[%emt 0:00:07]} Kd7 {[%emt 0:
00:04]} 67. Rh8 {[%emt 0:00:06]} Rg4 {[%emt 0:00:17]} 68. Rxh5 {[%emt 0:00:09]}
Rxc4 {[%emt 0:00:03]} 69. f6 {[%emt 0:00:08]} Rf4 {[%emt 0:00:18]} 70. Rh8 {
[%emt 0:00:44]} Kd6 {[%emt 0:00:00]} 71. h5 {[%emt 0:00:17]} Ke5 {[%emt 0:00:
32]} 72. Re8+ {[%emt 0:00:21]} Kf5 {[%emt 0:00:05]} 73. Ra8 {[%emt 0:02:41]}
Kg5 {[%emt 0:01:18]} 74. Kg7 {[%emt 0:00:14]} Rxf6 {[%emt 0:01:47]} 75. Ra5+ {
[%emt 0:00:03] Weighted Error Value: White=0.10 (very precise) /Black=0.28 
(precise)} 1-0

[Event "44th Chess Olympiad Women 2022"]
[Site "Chennai"]
[Date "2022.08.03"]
[Round "6.4"]
[White "Socko, Monika"]
[Black "Blagojevic, Tijana"]
[Result "1-0"]
[WhiteElo "2416"]
[BlackElo "2330"]
[Annotator "TA"]
[PlyCount "95"]
[EventDate "2022.??.??"]
[TimeControl "60"]

{[%evp 9,95,11,18,0,7,0,31,37,29,29,45,45,35,27,35,31,29,17,36,32,28,11,39,38,
36,29,54,46,43,60,177,131,138,135,159,153,240,207,212,200,253,260,235,146,730,
717,914,825,1365,1337,1447,656,645,447,415,415,398,348,340,316,288,243,314,310,
300,295,281,270,373,357,377,377,714,337,678,675,632,618,702,675,681,498,444,
381,681,666,762,680]} 1. d4 {[%emt 0:00:04]} d5 {[%emt 0:00:09]} 2. c4 {
[%emt 0:00:05]} e6 {[%emt 0:00:04]} 3. Nf3 {[%emt 0:01:18]} Nf6 {[%emt 0:00:12]
} 4. e3 {[%emt 0:01:20]} b6 {[%emt 0:00:41]} 5. Nbd2 {[%emt 0:06:25]} Bd6 {
[%emt 0:07:22]} 6. Qc2 {[%emt 0:02:50] E14: Queen's Indian: Classical
Variation (4 e3).} Bb7 {[%emt 0:02:45]} 7. c5 {[%emt 0:03:21]} bxc5 {[%emt 0:
00:00]} 8. dxc5 {[%emt 0:01:07] White is slightly better.} Be7 {[%emt 0:00:09]}
9. b4 {[%emt 0:04:07] [#]} c6 $146 {[%emt 0:03:28]} ({Predecessor:} 9... O-O
10. Bb2 a5 11. b5 c6 12. a4 Nbd7 13. Bd4 Re8 14. Rc1 Bf8 15. Qb2 Ng4 {0-1 (46)
Breyer,G-Tarrasch,S Gothenburg 1920}) 10. Nb3 {[%emt 0:04:13] Against a5} Nbd7
{[%emt 0:07:35]} 11. Bb2 {[%emt 0:09:18]} O-O {[%emt 0:07:35][%cal Ya7a5]} 12.
Bd3 {[%emt 0:02:30]} a5 {[%emt 0:06:04]} 13. a3 {[%emt 0:06:10]} axb4 {[%emt 0:
00:00]} 14. axb4 {[%emt 0:00:06]} Rxa1+ {[%emt 0:01:28]} 15. Bxa1 {[%emt 0:00:
00]} Qc7 {[%emt 0:02:10]} 16. O-O {[%emt 0:01:41]} Ra8 {[%emt 0:02:32]} 17. Bc3
{[%emt 0:00:50]} e5 {[%emt 0:08:53]} 18. e4 {[%emt 0:08:52]} dxe4 {[%emt 0:00:
00]} 19. Bxe4 {[%emt 0:00:09]} Ra3 {[%emt 0:01:15]} (19... Nxe4 $14 20. Qxe4
Ra3) 20. Re1 {[%emt 0:03:10]} (20. Bf5 $18) 20... Nxe4 $16 {[%emt 0:08:17]} 21.
Rxe4 {[%emt 0:00:20]} f6 {[%emt 0:03:12]} 22. Na5 {[%emt 0:04:24] White is
more active.} Kh8 {[%emt 0:06:52]} (22... Ba6 $16) 23. Re1 {[%emt 0:07:15]} ({
Much less strong is} 23. Rh4 $6 h6 $16) 23... Ba6 {[%emt 0:00:58]} 24. Qb2 {
[%emt 0:02:09]} Ra4 {[%emt 0:00:39] [#]} 25. Qb3 $1 {[%emt 0:01:41]} Bb5 {
[%emt 0:00:09]} 26. h4 {[%emt 0:05:41] Black must now prevent Qf7.} Nf8 $2 {
[%emt 0:01:25] [#] This move loses the game for Black.} (26... Qc8 $16) 27.
Nxe5 $1 $18 {[%emt 0:08:28] White threatens Nf7+ and mate.} fxe5 {[%emt 0:04:
50]} (27... h6 28. Nexc6) 28. Bxe5 {[%emt 0:00:01] Strongly threatening Qf7.}
Qd7 {[%emt 0:07:07]} 29. Qf7 {[%emt 0:00:14][%csl Ge5][%cal Rf7g7]} Qg4 {
[%emt 0:00:49] [#]} 30. Qxe7 {[%emt 0:02:25]} (30. Re4 $142 $3 Ra1+ 31. Kh2)
30... Kg8 {[%emt 0:00:04]} 31. f3 {[%emt 0:04:36]} Qd7 {[%emt 0:00:34]} 32. Bc3
{[%emt 0:04:27]} Ra3 {[%emt 0:00:42]} 33. Qxd7 {[%emt 0:01:59]} Nxd7 {[%emt 0:
00:04] [#]} 34. Bxg7 {[%emt 0:00:26]} Nxc5 {[%emt 0:00:15]} 35. bxc5 {[%emt 0:
01:00] Threatens to win with Ra1.} Kxg7 {[%emt 0:00:13] Endgame KRB-KRN} 36.
Nb7 {[%emt 0:00:05]} Rc3 {[%emt 0:01:13]} 37. Re7+ {[%emt 0:00:51]} Kg6 {
[%emt 0:00:17]} 38. Re5 {[%emt 0:01:49]} Rc1+ {[%emt 0:00:20]} 39. Kh2 {
[%emt 0:00:11]} Rc2 {[%emt 0:00:00]} 40. Nd6 {[%emt 0:00:52]} Be2 $2 {[%emt 0:
00:41]} (40... Kf6 41. Rf5+ Kg7 42. Nxb5 cxb5) 41. Kh3 {[%emt 0:31:52]} (41.
Re6+ $142 Kg7 42. h5) 41... Bf1 $2 {[%emt 0:30:29]} (41... Kf6 42. Re8 Bc4 43.
Ne4+ Kf5) 42. Rg5+ {[%emt 0:00:07]} Kf6 {[%emt 0:00:10]} 43. Ne4+ {[%emt 0:00:
38]} Kf7 {[%emt 0:00:13]} 44. h5 {[%emt 0:00:57][%cal Yh4h5,Yh5h6]} Bd3 {
[%emt 0:01:43]} 45. Kg3 {[%emt 0:00:00]} Bf1 {[%emt 0:00:00]} 46. Nf2 {[%emt 0:
00:00]} Bc4 $2 {[%emt 0:00:00]} (46... h6 47. Rg6 Rxc5 48. Rxh6 Rg5+ 49. Ng4
Kg7) 47. h6 {[%emt 0:00:00]} Bd5 {[%emt 0:00:00]} 48. Rg7+ {[%emt 0:00:00]
Weighted Error Value: White=0.39/Black=0.33} 1-0

[Event "44th Chess Olympiad Women 2022"]
[Site "Chennai"]
[Date "2022.08.03"]
[Round "6.5"]
[White "Guichard, Pauline"]
[Black "Van Foreest, Machteld"]
[Result "1-0"]
[WhiteElo "2379"]
[BlackElo "2299"]
[Annotator "TA"]
[PlyCount "67"]
[EventDate "2022.??.??"]
[TimeControl "60"]

{[%evp 23,67,61,82,78,60,58,50,51,59,58,229,233,221,211,228,233,224,220,226,
142,137,134,201,208,205,211,207,201,233,234,387,376,938,933,956,743,6148,5647,
5473,5397,6141,6141,5277,5152,2385,1547]} 1. d4 {[%emt 0:00:03]} d5 {[%emt 0:
00:00]} 2. c4 {[%emt 0:00:07]} e6 {[%emt 0:00:05]} 3. Nf3 {[%emt 0:00:15]} c5 {
[%emt 0:00:21]} 4. cxd5 {[%emt 0:01:48]} exd5 {[%emt 0:00:07]} 5. g3 {[%emt 0:
00:00]} Nc6 {[%emt 0:00:07]} 6. Bg2 {[%emt 0:00:07]} Nf6 {[%emt 0:00:05]} 7.
O-O {[%emt 0:01:16]} Be7 {[%emt 0:00:05]} 8. dxc5 {[%emt 0:01:24]} Bxc5 {
[%emt 0:02:16]} 9. a3 {[%emt 0:00:08]} O-O {[%emt 0:04:00]} 10. b4 {[%emt 0:00:
00]} Be7 {[%emt 0:02:51]} 11. Nc3 {[%emt 0:04:18]} h6 {[%emt 0:24:20]} 12. Bb2
{[%emt 0:03:04]} Be6 {[%emt 0:02:39]} 13. Rc1 {[%emt 0:03:30] D34: Tarrasch
Defence: 6 g3 Nf6 7 Bg2 Be7.} Rc8 {[%emt 0:04:07]} 14. Qd3 {[%emt 0:09:29]
Against Ne4} Qd7 {[%emt 0:03:40]} 15. Rfd1 {[%emt 0:01:11] White is slightly
better.} Rfd8 {[%emt 0:01:16] [#]} 16. e3 $146 {[%emt 0:01:20]} ({Predecessor:
} 16. Qb1 Qe8 17. e3 a6 18. Qa1 Qf8 19. Ne2 Ne4 20. Nf4 Bf6 21. Ne1 Qe7 22.
Ned3 Bxb2 23. Qxb2 {1-0 (67) Artemiev,V (2696)-Faizrakhmanov,R (2421) St
Petersburg 2017}) 16... Bg4 $2 {[%emt 0:17:38] [#] This move loses the game
for Black.} (16... Bf5 $14 17. Qf1 Qe8) 17. b5 $1 $18 {[%emt 0:12:59]} Na5 {
[%emt 0:10:03]} 18. Ne5 {[%emt 0:00:42][%csl Yd5,Yd7]} Qe6 {[%emt 0:08:50]} 19.
Nxg4 {[%emt 0:00:18]} (19. Nxd5 $2 Rxc1 20. Rxc1 Nxd5 $17) 19... Qxg4 {[%emt 0:
00:31]} 20. Nxd5 {[%emt 0:02:35]} Nxd5 {[%emt 0:01:26]} 21. Bxd5 {[%emt 0:07:
06]} Nc4 {[%emt 0:03:23]} 22. Ba1 {[%emt 0:13:18] [#] aiming for f3. This
bishop pair is nice.} Nb6 {[%emt 0:04:57]} (22... Qh5 $16 {keeps fighting.} 23.
a4 Rc7) 23. Rxc8 {[%emt 0:05:54] Really sharp!} Nxc8 {[%emt 0:01:22]} 24. Qb3 {
[%emt 0:02:14]} Nd6 {[%emt 0:03:30]} 25. Kg2 {[%emt 0:02:43]} Rc8 {[%emt 0:03:
17]} 26. Be5 {[%emt 0:03:14]} Nc4 {[%emt 0:01:37]} (26... Qh5) 27. Rd4 {
[%emt 0:03:59][%cal Yd1d4,Yd4f4,Yf4f7,Yf7g7]} Nxe3+ $2 {[%emt 0:00:00]} (27...
Qf5) 28. Qxe3 {[%emt 0:00:17] White is clearly winning.} ({Not} 28. fxe3 Qe2+
29. Kh3 Qf1+ 30. Bg2 (30. Kg4 $2 {leads to mate.} h5+ 31. Kxh5 Qf5#) 30... Qf5+
31. g4 Qxe5 32. Bxb7 (32. Rf4 Bf6 $17) 32... Rc7 $15) 28... Qh5 {[%emt 0:01:03]
} 29. Rf4 {[%emt 0:02:56]} Bg5 {[%emt 0:00:23]} 30. Bxf7+ {[%emt 0:00:53]} Qxf7
{[%emt 0:00:05]} 31. Rxf7 {[%emt 0:00:04]} Bxe3 {[%emt 0:00:00]} 32. Rxg7+ {
[%emt 0:00:04]} Kf8 {[%emt 0:00:26]} 33. fxe3 {[%emt 0:00:00]} Rc2+ {[%emt 0:
00:09]} 34. Kf3 {[%emt 0:00:14] Weighted Error Value: White=0.08 (flawless) /
Black=0.53} 1-0